bitfinex/quotes_BTCUSD_20250727
["timestamp","ask_amount","ask_price","bid_price","bid_amount"]
[1753590301491,1e-08,118350.0,118340.0,2.09912876]
[1753590303474,1e-08,118350.0,118340.0,2.09983876]
[1753590303725,1e-08,118350.0,118340.0,2.09912876]
[1753590310573,1e-08,118350.0,118340.0,2.04912876]
[1753590310783,1e-08,118350.0,118340.0,2.09912876]
[1753590312018,1e-08,118350.0,118340.0,2.04912876]
[1753590312234,1e-08,118350.0,118340.0,2.09912876]
[1753590317065,1e-08,118350.0,118340.0,2.04912876]
[1753590317313,1e-08,118350.0,118340.0,2.09912876]
[1753590327465,1e-08,118350.0,118340.0,2.04912876]
[1753590327694,1e-08,118350.0,118340.0,2.09912876]
[1753590330243,1e-08,118350.0,118340.0,2.04912876]
[1753590330422,1e-08,118350.0,118340.0,2.09912876]
[1753590332912,0.02659,118370.0,118360.0,0.53432153]
[1753590333112,0.02878847,118370.0,118360.0,1.01193883]
[1753590333320,0.02878847,118370.0,118360.0,1.32818741]
[1753590333549,0.05998847,118370.0,118360.0,1.34563643]
[1753590333979,0.05998847,118370.0,118360.0,1.54851643]
[1753590334791,0.05998847,118370.0,118360.0,1.54951643]
[1753590335257,0.05998847,118370.0,118360.0,1.21581883]
[1753590335500,0.07688356,118370.0,118360.0,1.08817883]
[1753590335737,0.05998847,118370.0,118360.0,1.21685883]
[1753590337997,0.05998847,118370.0,118360.0,1.53310741]
[1753590338729,0.06843598,118370.0,118360.0,1.39697911]
[1753590338926,0.06843591,118370.0,118360.0,1.21693883]
[1753590339154,0.06843591,118370.0,118360.0,0.95143883]
[1753590339940,0.05998847,118370.0,118360.0,0.95143883]
[1753590340137,0.06843591,118370.0,118360.0,0.95143883]
[1753590341201,0.39313214,118370.0,118360.0,0.7983333]
[1753590341418,0.39313214,118370.0,118360.0,0.95143905]
[1753590341757,0.07688356,118370.0,118360.0,0.95143905]
[1753590342200,0.08533136,118370.0,118360.0,0.95143905]
[1753590342387,0.07688356,118370.0,118360.0,0.95988735]
[1753590344380,0.07688356,118370.0,118360.0,0.95143905]
[1753590344607,0.07688356,118370.0,118360.0,0.95988735]
[1753590346059,0.07688356,118370.0,118360.0,0.83212735]
[1753590346271,0.07688356,118370.0,118360.0,0.95988735]
[1753590347335,0.08533136,118370.0,118360.0,0.95143905]
[1753590347542,0.07688356,118370.0,118360.0,0.95143905]
[1753590347747,0.07688356,118370.0,118360.0,0.95988735]
[1753590347891,0.08533136,118370.0,118360.0,0.95143905]
[1753590348317,0.08533128,118370.0,118360.0,0.95988735]
[1753590348911,0.08533128,118370.0,118360.0,0.95143905]
[1753590349129,0.08533128,118370.0,118360.0,0.95988735]
[1753590349320,0.07688356,118370.0,118360.0,0.95988735]
[1753590349730,0.08533143,118370.0,118360.0,0.95988735]
[1753590350363,0.08533136,118370.0,118360.0,0.95988735]
[1753590350602,0.0937793,118370.0,118360.0,0.95988735]
[1753590351458,0.08533136,118370.0,118360.0,0.95988735]
[1753590351666,0.09377923,118370.0,118360.0,0.95988735]
[1753590354784,0.08533136,118370.0,118360.0,0.95988735]
[1753590356024,0.0937793,118370.0,118360.0,0.95988735]
[1753590356246,0.09377923,118370.0,118360.0,0.95988735]
[1753590356912,0.09377923,118370.0,118360.0,0.98256735]
[1753590359978,0.08533136,118370.0,118360.0,0.98256735]
[1753590361663,0.0937793,118370.0,118360.0,0.97411905]
[1753590361881,0.0937793,118370.0,118360.0,0.98256735]
[1753590362310,0.08533136,118370.0,118360.0,0.98256735]
[1753590362659,0.08533136,118370.0,118360.0,0.77956735]
[1753590362892,0.0937793,118370.0,118360.0,0.77956735]
[1753590363093,0.0937793,118370.0,118360.0,0.77111905]
[1753590363294,0.08533136,118370.0,118360.0,0.77956735]
[1753590364588,0.06188136,118370.0,118360.0,0.77956735]
[1753590366626,0.0703293,118370.0,118360.0,0.77956735]
[1753590366814,0.0703293,118370.0,118360.0,0.78165735]
[1753590367067,0.06188136,118370.0,118360.0,0.78165735]
[1753590368358,0.0703293,118370.0,118360.0,0.78165735]
[1753590368813,0.06188136,118370.0,118360.0,0.78165735]
[1753590369473,0.0935693,118370.0,118360.0,0.77956735]
[1753590370171,0.09356923,118370.0,118360.0,0.77956735]
[1753590370392,0.08512136,118370.0,118360.0,0.77956735]
[1753590371399,0.08512136,118370.0,118360.0,0.77111905]
[1753590371623,0.0935693,118370.0,118360.0,0.77956735]
[1753590372032,0.0703293,118370.0,118360.0,0.77956735]
[1753590372831,0.0703293,118370.0,118360.0,0.77111905]
[1753590373034,0.07877795,118370.0,118360.0,0.77111912]
[1753590373443,0.05343392,118370.0,118360.0,0.77956742]
[1753590373621,0.06188179,118370.0,118360.0,0.78165742]
[1753590374641,0.07032973,118370.0,118360.0,0.78165742]
[1753590374846,0.06188179,118370.0,118360.0,0.78165742]
[1753590379129,0.0703298,118370.0,118360.0,0.78165742]
[1753590379341,0.06188179,118370.0,118360.0,0.78165742]
[1753590379550,0.07032973,118370.0,118360.0,0.78165749]
[1753590379972,0.07033016,118370.0,118360.0,0.77320919]
[1753590380196,0.07033016,118370.0,118360.0,0.78165763]
[1753590380894,0.07033009,118370.0,118360.0,0.790106]
[1753590381589,0.07033009,118370.0,118360.0,0.78165763]
[1753590382925,0.07877817,118370.0,118360.0,0.78165763]
[1753590383338,0.07877817,118370.0,118360.0,0.790106]
[1753590383555,0.07877817,118370.0,118360.0,0.78165763]
[1753590384643,0.07033037,118370.0,118360.0,0.77320919]
[1753590385086,0.06188229,118370.0,118360.0,0.78165756]
[1753590385291,0.07033037,118370.0,118360.0,0.78165756]
[1753590385711,0.07033037,118370.0,118360.0,0.77320919]
[1753590386155,0.07033037,118370.0,118360.0,0.78165763]
[1753590386607,0.05343428,118370.0,118360.0,0.79010593]
[1753590387286,0.06188236,118370.0,118360.0,0.78165763]
[1753590388675,0.5618148,118370.0,118360.0,0.4264773]
[1753590388904,0.5618148,118370.0,118360.0,0.002]
[1753590389136,0.5618148,118370.0,118360.0,0.12956]
[1753590389819,0.5618148,118370.0,118360.0,0.12856]
[1753590390099,0.5638148,118370.0,118360.0,0.12756]
[1753590390334,0.5658148,118370.0,118360.0,0.12756]
[1753590396627,0.5658148,118370.0,118360.0,0.15231]
[1753590397711,0.24956622,118370.0,118360.0,0.15231]
[1753590397914,0.5658148,118370.0,118360.0,0.15231]
[1753590404523,0.24956622,118370.0,118360.0,0.15231]
[1753590404730,0.5658148,118370.0,118360.0,0.15231]
[1753590405414,0.24956622,118370.0,118360.0,0.15231]
[1753590405640,0.5265448,118370.0,118360.0,0.15231]
[1753590406340,0.5265448,118370.0,118360.0,0.15439]
[1753590407401,0.21029622,118370.0,118360.0,0.33181465]
[1753590407857,0.18990622,118370.0,118360.0,0.33181465]
[1753590408077,0.00404847,118370.0,118360.0,1.12406734]
[1753590408288,0.01249591,118370.0,118360.0,1.12406734]
[1753590408747,0.00404847,118370.0,118360.0,1.12406734]
[1753590408994,0.01049591,118370.0,118360.0,1.12406734]
[1753590409186,0.00849591,118370.0,118360.0,1.12406734]
[1753590409405,0.00849591,118370.0,118360.0,1.13313913]
[1753590409624,0.00949591,118370.0,118360.0,1.12406734]
[1753590410495,0.01049591,118370.0,118360.0,1.12406734]
[1753590410969,0.00204847,118370.0,118360.0,1.12406734]
[1753590411170,0.01049591,118370.0,118360.0,1.12406734]
[1753590411665,0.00204847,118370.0,118360.0,1.12406734]
[1753590412084,0.01049598,118370.0,118360.0,1.12406734]
[1753590415341,0.00204847,118370.0,118360.0,1.12406734]
[1753590415601,0.01049591,118370.0,118360.0,1.12406734]
[1753590416082,0.00204847,118370.0,118360.0,1.12406734]
[1753590421189,0.01049591,118370.0,118360.0,1.12406734]
[1753590423086,0.00204847,118370.0,118360.0,1.12406734]
[1753590426600,0.01049591,118370.0,118360.0,1.12406734]
[1753590427042,0.01049591,118370.0,118360.0,0.80781876]
[1753590427245,0.01049591,118370.0,118360.0,1.12406734]
[1753590428835,0.00204847,118370.0,118360.0,1.12406734]
[1753590429715,0.01049591,118370.0,118360.0,1.12406734]
[1753590430112,0.00204847,118370.0,118360.0,1.12406734]
[1753590430350,0.01049591,118370.0,118360.0,1.12406734]
[1753590430781,0.01894349,118370.0,118360.0,1.12406734]
[1753590431036,0.01049591,118370.0,118360.0,1.12406734]
[1753590434747,0.00204847,118370.0,118360.0,1.12406734]
[1753590434962,0.01049591,118370.0,118360.0,1.12406734]
[1753590435400,0.01049591,118370.0,118360.0,1.12103734]
[1753590436541,0.00204847,118370.0,118360.0,1.12103734]
[1753590438282,0.00204847,118370.0,118360.0,1.12398734]
[1753590445593,0.00204847,118370.0,118360.0,0.80773876]
[1753590445823,0.00204847,118370.0,118360.0,1.12398734]
[1753590448961,0.00204847,118370.0,118360.0,1.10838734]
[1753590449174,0.00204847,118370.0,118360.0,1.10543734]
[1753590453821,0.00204847,118370.0,118360.0,0.78918876]
[1753590454242,0.00204847,118370.0,118360.0,1.10543734]
[1753590461230,0.00204847,118370.0,118360.0,0.78918876]
[1753590461477,0.00204847,118370.0,118360.0,1.10543734]
[1753590472742,0.00204847,118370.0,118360.0,0.78918876]
[1753590472958,0.00204847,118370.0,118360.0,1.10543734]
[1753590474152,0.00204847,118370.0,118360.0,0.78918876]
[1753590474375,0.00204847,118370.0,118360.0,1.10543734]
[1753590475804,0.00204847,118370.0,118360.0,1.11405581]
[1753590480705,0.00204847,118370.0,118360.0,1.09805581]
[1753590482632,0.00204847,118370.0,118360.0,1.11315581]
[1753590486853,0.00204847,118370.0,118360.0,1.09805581]
[1753590490336,0.00204847,118370.0,118360.0,0.78180723]
[1753590490524,0.00204847,118370.0,118360.0,1.09805581]
[1753590503441,0.00407847,118370.0,118360.0,1.09805581]
[1753590505467,0.00720847,118370.0,118360.0,1.09805581]
[1753590507252,0.00407847,118370.0,118360.0,1.09805581]
[1753590507453,0.00204847,118370.0,118360.0,1.09805581]
[1753590509568,0.00204847,118370.0,118360.0,0.78180723]
[1753590509773,0.00204847,118370.0,118360.0,1.09805581]
[1753590510824,0.00204847,118370.0,118360.0,0.78180723]
[1753590511019,0.00204847,118370.0,118360.0,1.09805581]
[1753590522117,0.00204847,118370.0,118360.0,0.78180723]
[1753590522245,0.00204847,118370.0,118360.0,1.09805581]
[1753590532264,0.00204847,118370.0,118360.0,1.08943734]
[1753590535602,0.03113591,118370.0,118360.0,1.08943734]
[1753590536394,0.03958349,118370.0,118360.0,1.08943734]
[1753590536597,0.03113591,118370.0,118360.0,1.08943734]
[1753590536968,0.03113591,118370.0,118360.0,0.77318876]
[1753590537229,0.03958349,118370.0,118360.0,1.08943734]
[1753590537459,0.03958349,118370.0,118360.0,1.09790648]
[1753590537928,0.06352349,118370.0,118360.0,1.09790648]
[1753590539460,0.06352349,118370.0,118360.0,1.12274079]
[1753590540799,0.06352342,118370.0,118360.0,1.12274079]
[1753590541031,0.03958342,118370.0,118360.0,1.12274079]
[1753590544837,0.02739107,118370.0,118360.0,1.12274079]
[1753590545044,0.00204847,118370.0,118360.0,1.14067079]
[1753590547931,0.00204847,118370.0,118360.0,1.12567079]
[1753590548134,0.00204847,118370.0,118360.0,1.12274079]
[1753590548724,0.01049591,118370.0,118360.0,1.12274079]
[1753590549325,0.00204847,118370.0,118360.0,1.12274079]
[1753590571788,0.00204847,118370.0,118360.0,1.47389937]
[1753590572001,0.00204847,118370.0,118360.0,1.49134839]
[1753590573068,4.847e-05,118370.0,118360.0,1.49134839]
[1753590574423,4.847e-05,118370.0,118360.0,1.49234839]
[1753590575271,4.847e-05,118370.0,118360.0,1.49334839]
[1753590584970,4.847e-05,118370.0,118360.0,1.69622839]
[1753590589406,4.847e-05,118370.0,118360.0,1.37997981]
[1753590597471,4.847e-05,118370.0,118360.0,1.34667636]
[1753590598990,4.847e-05,118370.0,118360.0,1.32836636]
[1753590599413,4.847e-05,118370.0,118360.0,1.22637355]
[1753590599620,4.847e-05,118370.0,118360.0,1.35377355]
[1753590602047,4.847e-05,118370.0,118360.0,1.36238583]
[1753590604565,4.847e-05,118370.0,118360.0,1.38209583]
[1753590604779,4.847e-05,118370.0,118360.0,1.69834441]
[1753590607720,4.847e-05,118370.0,118360.0,1.38209583]
[1753590608224,4.847e-05,118370.0,118360.0,1.64759583]
[1753590612622,4.847e-05,118370.0,118360.0,1.63109583]
[1753590612972,4.847e-05,118370.0,118360.0,1.62788583]
[1753590619667,4.847e-05,118370.0,118360.0,1.64649583]
[1753590621398,4.847e-05,118370.0,118360.0,1.96274441]
[1753590622324,4.847e-05,118370.0,118360.0,1.64649583]
[1753590623877,4.847e-05,118370.0,118360.0,1.61128583]
[1753590624096,0.00521847,118370.0,118360.0,1.61128583]
[1753590624543,0.00521847,118370.0,118360.0,1.48388583]
[1753590624744,0.00521847,118370.0,118360.0,1.61124583]
[1753590631700,0.04355847,118370.0,118360.0,1.45705583]
[1753590631932,0.05995847,118370.0,118360.0,1.58441583]
[1753590635229,0.05995847,118370.0,118360.0,1.26816725]
[1753590635418,0.05995847,118370.0,118360.0,1.58441583]
[1753590635866,0.05995847,118370.0,118360.0,1.60724583]
[1753590638831,0.05995847,118370.0,118360.0,1.58441583]
[1753590639723,0.05995847,118370.0,118360.0,1.56696681]
[1753590639947,0.05995847,118370.0,118360.0,1.22827851]
[1753590640137,0.06840598,118370.0,118360.0,1.36408681]
[1753590641715,0.07685363,118370.0,118360.0,1.36408681]
[1753590642323,0.07685356,118370.0,118360.0,1.36408681]
[1753590642735,0.07685356,118370.0,118360.0,0.90358142]
[1753590642736,0.0937493,118370.0,118360.0,0.90358142]
[1753590642982,0.08530136,118370.0,118360.0,1.04783844]
[1753590643158,0.09374923,118370.0,118360.0,1.04783844]
[1753590643583,0.09374923,118370.0,118360.0,1.09858702]
[1753590643788,0.10219724,118370.0,118360.0,0.78233851]
[1753590643998,0.10219724,118370.0,118360.0,1.09858709]
[1753590644213,0.10219724,118370.0,118360.0,1.10703553]
[1753590644857,0.10219717,118370.0,118360.0,1.10703553]
[1753590645057,0.10219717,118370.0,118360.0,1.09858709]
[1753590645611,0.10219774,118370.0,118360.0,1.09858709]
[1753590645817,0.09374966,118370.0,118360.0,0.97967553]
[1753590646036,0.25426381,118370.0,118360.0,0.74838049]
[1753590646507,0.25426381,118370.0,118360.0,0.62946921]
[1753590646741,0.25426381,118370.0,118360.0,0.75682921]
[1753590646969,0.25426381,118370.0,118360.0,1.07307779]
[1753590647285,0.25426381,118370.0,118360.0,1.08152659]
[1753590647513,0.25426381,118370.0,118360.0,0.95416659]
[1753590647732,0.25426381,118370.0,118360.0,1.08152659]
[1753590648351,0.25426381,118370.0,118360.0,1.08052659]
[1753590648765,0.25426381,118370.0,118360.0,1.07952659]
[1753590648973,0.25426381,118370.0,118360.0,0.95216659]
[1753590649171,0.25426381,118370.0,118360.0,1.07952659]
[1753590649642,0.25426381,118370.0,118360.0,1.08797524]
[1753590650276,0.09375016,118370.0,118360.0,1.10487233]
[1753590650944,0.09375016,118370.0,118360.0,1.09642382]
[1753590651321,0.09375016,118370.0,118360.0,1.10487233]
[1753590652350,0.09375009,118370.0,118360.0,1.10487233]
[1753590654115,0.07685414,118370.0,118360.0,1.1048719]
[1753590654410,0.07685414,118370.0,118360.0,1.1277019]
[1753590656285,0.08530215,118370.0,118360.0,1.12774197]
[1753590656791,0.07685414,118370.0,118360.0,1.12774197]
[1753590657038,0.07685414,118370.0,118360.0,1.12770197]
[1753590657506,0.08530215,118370.0,118360.0,1.12770197]
[1753590657932,0.08530215,118370.0,118360.0,1.11080502]
[1753590658146,0.08530215,118370.0,118360.0,1.11925353]
[1753590659147,0.08530215,118370.0,118360.0,0.99189353]
[1753590659364,0.08530215,118370.0,118360.0,1.11929353]
[1753590659993,0.07685414,118370.0,118360.0,1.12774197]
[1753590660332,0.08530208,118370.0,118360.0,1.11929353]
[1753590660543,0.08530208,118370.0,118360.0,1.12774197]
[1753590660982,0.08530208,118370.0,118360.0,1.12774162]
[1753590661401,0.08530208,118370.0,118360.0,1.11929325]
[1753590661573,0.06206208,118370.0,118360.0,1.11929325]
[1753590662193,0.05361414,118370.0,118360.0,1.12774162]
[1753590662381,0.05361414,118370.0,118360.0,1.09579606]
[1753590663356,0.06206208,118370.0,118360.0,1.09579606]
[1753590664614,0.03671847,118370.0,118360.0,1.10424436]
[1753590664846,0.05361377,118370.0,118360.0,1.10424436]
[1753590665680,0.05054377,118370.0,118360.0,1.10424436]
[1753590666796,0.05899157,118370.0,118360.0,1.10424436]
[1753590667871,0.05899157,118370.0,118360.0,1.12980675]
[1753590668541,0.05899157,118370.0,118360.0,1.12135845]
[1753590668706,0.05899157,118370.0,118360.0,0.81355824]
[1753590668934,0.05899157,118370.0,118360.0,1.12980682]
[1753590669270,0.05899157,118370.0,118360.0,1.12980647]
[1753590670523,0.05054377,118370.0,118360.0,1.12980647]
[1753590671606,0.05899164,118370.0,118360.0,1.12135817]
[1753590672531,0.05054377,118370.0,118360.0,1.12980647]
[1753590672736,0.05054377,118370.0,118360.0,1.12135817]
[1753590672934,0.05899164,118370.0,118360.0,1.12135817]
[1753590673573,0.05899164,118370.0,118360.0,1.1129098]
[1753590674687,0.05899164,118370.0,118360.0,1.12135817]
[1753590675252,0.05054377,118370.0,118360.0,1.12980647]
[1753590675862,0.05054377,118370.0,118360.0,1.12135817]
[1753590676074,0.05899157,118370.0,118360.0,1.12135817]
[1753590677492,0.04259157,118370.0,118360.0,1.12135817]
[1753590678326,0.04259157,118370.0,118360.0,1.12980647]
[1753590679297,0.04259157,118370.0,118360.0,1.12135817]
[1753590679998,0.04259157,118370.0,118360.0,1.12980647]
[1753590680232,0.03414377,118370.0,118360.0,1.12980647]
[1753590682128,0.02569605,118370.0,118360.0,1.12980647]
[1753590682364,0.0341437,118370.0,118360.0,1.12980647]
[1753590687958,0.0425915,118370.0,118360.0,1.12980647]
[1753590688380,0.0341437,118370.0,118360.0,1.12980647]
[1753590688567,0.02569605,118370.0,118360.0,1.12980647]
[1753590689059,0.00849605,118370.0,118360.0,1.12980647]
[1753590691852,4.847e-05,118370.0,118360.0,1.12980647]
[1753590692072,0.00849605,118370.0,118360.0,1.12980647]
[1753590692778,0.00849598,118370.0,118360.0,1.12980647]
[1753590694181,0.01694363,118370.0,118360.0,1.12980647]
[1753590694807,0.00849598,118370.0,118360.0,1.12980647]
[1753590695011,0.01694356,118370.0,118360.0,1.12980647]
[1753590695447,0.00849598,118370.0,118360.0,1.12980647]
[1753590697533,0.00849598,118370.0,118360.0,1.12980647]
[1753590697938,0.01694363,118370.0,118360.0,1.12980647]
[1753590698075,0.00849598,118370.0,118360.0,1.12980647]
[1753590698293,0.01694363,118370.0,118360.0,1.12980647]
[1753590698493,0.00849598,118370.0,118360.0,1.12980647]
[1753590699819,0.01694356,118370.0,118360.0,1.12980647]
[1753590700938,0.00849598,118370.0,118360.0,1.12980647]
[1753590701447,0.01694356,118370.0,118360.0,1.12980647]
[1753590702079,0.00849598,118370.0,118360.0,1.12980647]
[1753590702487,0.01694363,118370.0,118360.0,1.12980647]
[1753590703858,0.00849598,118370.0,118360.0,1.12980647]
[1753590704072,0.01694363,118370.0,118360.0,1.12980647]
[1753590704488,0.00849598,118370.0,118360.0,1.12980647]
[1753590704693,0.01694356,118370.0,118360.0,1.12980647]
[1753590704920,0.02539136,118370.0,118360.0,1.12980647]
[1753590705517,0.02539128,118370.0,118360.0,1.12980647]
[1753590706547,0.03383915,118370.0,118360.0,1.12980647]
[1753590707372,0.02539128,118370.0,118360.0,1.12980647]
[1753590708365,0.03383915,118370.0,118360.0,1.12980647]
[1753590710541,0.02539128,118370.0,118360.0,1.12980647]
[1753590710996,0.03383908,118370.0,118360.0,1.12980647]
[1753590712785,0.04228702,118370.0,118360.0,1.12980647]
[1753590713183,0.04228709,118370.0,118360.0,1.12135817]
[1753590713393,0.04228709,118370.0,118360.0,1.1129098]
[1753590714011,0.04433709,118370.0,118360.0,0.79666122]
[1753590714150,0.05943709,118370.0,118360.0,1.1129098]
[1753590714367,0.05943709,118370.0,118360.0,1.12135817]
[1753590714938,0.05943709,118370.0,118360.0,1.1129098]
[1753590715519,0.05943709,118370.0,118360.0,1.12135817]
[1753590715933,0.05098908,118370.0,118360.0,1.12135817]
[1753590716135,0.05943702,118370.0,118360.0,1.12980647]
[1753590717119,0.05943702,118370.0,118360.0,1.12135817]
[1753590718936,0.05943702,118370.0,118360.0,0.99399817]
[1753590719152,0.05943702,118370.0,118360.0,1.1129098]
[1753590719571,0.05943702,118370.0,118360.0,1.12135817]
[1753590719790,0.05943702,118370.0,118360.0,1.1129098]
[1753590720364,0.05943702,118370.0,118360.0,1.12135817]
[1753590721972,0.04433702,118370.0,118360.0,1.12135817]
[1753590723573,0.04433702,118370.0,118360.0,1.1129098]
[1753590723776,0.04433752,118370.0,118360.0,1.1129098]
[1753590723985,0.04433752,118370.0,118360.0,1.12135817]
[1753590724363,0.04433752,118370.0,118360.0,1.1129098]
[1753590724971,0.03588951,118370.0,118360.0,1.12135817]
[1753590725234,0.03588951,118370.0,118360.0,1.12980647]
[1753590725694,0.03588951,118370.0,118360.0,1.12135817]
[1753590726762,0.03383951,118370.0,118360.0,1.12980647]
[1753590727419,0.03383951,118370.0,118360.0,1.10424408]
[1753590729009,0.03383951,118370.0,118360.0,1.09579578]
[1753590730340,0.03383951,118370.0,118360.0,1.10424408]
[1753590730733,0.03383944,118370.0,118360.0,1.10424408]
[1753590732246,0.03383944,118370.0,118360.0,1.12972691]
[1753590734520,0.02539157,118370.0,118360.0,1.12972691]
[1753590736804,0.03383951,118370.0,118360.0,1.12972691]
[1753590737405,0.02539157,118370.0,118360.0,1.12972691]
[1753590740044,0.24852594,118370.0,118360.0,0.36548283]
[1753590740380,0.24852594,118370.0,118360.0,0.80909141]
[1753590741365,0.24852594,118370.0,118360.0,0.98651621]
[1753590741582,0.24852594,118370.0,118360.0,0.97806741]
[1753590741767,0.24852594,118370.0,118360.0,0.98651621]
[1753590741991,0.24852594,118370.0,118360.0,0.85915621]
[1753590742426,0.24852594,118370.0,118360.0,0.98651621]
[1753590742879,0.24852594,118370.0,118360.0,0.97806741]
[1753590743275,0.24852594,118370.0,118360.0,1.01115621]
[1753590743453,0.24852594,118370.0,118360.0,1.00270741]
[1753590743801,0.24852594,118370.0,118360.0,1.01115621]
[1753590744683,0.24852594,118370.0,118360.0,1.01960493]
[1753590745831,0.24852594,118370.0,118360.0,1.02805358]
[1753590746056,0.24852594,118370.0,118360.0,1.01960493]
[1753590746251,0.24852594,118370.0,118360.0,1.02805358]
[1753590747114,0.24852594,118370.0,118360.0,1.01960493]
[1753590747315,0.24852594,118370.0,118360.0,1.02805358]
[1753590747517,0.24852594,118370.0,118360.0,1.03650216]
[1753590747731,0.24852594,118370.0,118360.0,1.04495067]
[1753590747937,0.24852594,118370.0,118360.0,1.03650216]
[1753590748157,0.24852594,118370.0,118360.0,0.72870209]
[1753590748360,0.24852594,118370.0,118360.0,1.03650216]
[1753590748780,0.24852594,118370.0,118360.0,1.04495067]
[1753590749577,0.22422594,118370.0,118360.0,1.04495067]
[1753590750021,0.0556598,118370.0,118360.0,1.04495031]
[1753590750334,0.05565973,118370.0,118360.0,1.04698031]
[1753590751360,0.03915973,118370.0,118360.0,1.04698031]
[1753590752037,0.05565973,118370.0,118360.0,1.04698031]
[1753590752634,0.04721172,118370.0,118360.0,1.04697989]
[1753590752854,0.03556385,118370.0,118360.0,1.04697989]
[1753590753426,0.01694385,118370.0,118360.0,1.04697989]
[1753590753662,0.02539179,118370.0,118360.0,1.04697989]
[1753590753892,0.02539172,118370.0,118360.0,1.04697989]
[1753590754111,0.02539172,118370.0,118360.0,1.04697996]
[1753590754550,0.03383966,118370.0,118360.0,1.04697996]
[1753590755051,0.03383966,118370.0,118360.0,1.04697961]
[1753590755722,0.02539172,118370.0,118360.0,1.04697961]
[1753590758223,0.01694385,118370.0,118360.0,1.04697961]
[1753590759654,4.847e-05,118370.0,118360.0,1.16671691]
[1753590768996,4.847e-05,118370.0,118360.0,0.85046833]
[1753590769196,4.847e-05,118370.0,118360.0,1.16671691]
[1753590792376,4.847e-05,118370.0,118360.0,0.8249855]
[1753590792577,4.847e-05,118370.0,118360.0,1.14123408]
[1753590793014,4.847e-05,118370.0,118360.0,0.8249855]
[1753590793236,4.847e-05,118370.0,118360.0,1.14123408]
[1753590793597,4.847e-05,118370.0,118360.0,1.13807408]
[1753590794212,4.847e-05,118370.0,118360.0,1.14125408]
[1753590796270,4.847e-05,118370.0,118360.0,1.16652964]
[1753590797986,4.847e-05,118370.0,118360.0,1.16334964]
[1753590798212,4.847e-05,118370.0,118360.0,1.14734964]
[1753590805144,4.847e-05,118370.0,118360.0,0.83110106]
[1753590805351,4.847e-05,118370.0,118360.0,1.14734964]
[1753590808007,4.847e-05,118370.0,118360.0,1.13124964]
[1753590820131,4.847e-05,118370.0,118360.0,0.81500106]
[1753590820372,4.847e-05,118370.0,118360.0,1.13124964]
[1753590822109,4.847e-05,118370.0,118360.0,0.81500106]
[1753590822324,4.847e-05,118370.0,118360.0,1.13124964]
[1753590828527,0.00200847,118370.0,118360.0,1.13124964]
[1753590828972,0.00519847,118370.0,118360.0,1.13124964]
[1753590830625,0.02059847,118370.0,118360.0,1.13124964]
[1753590832250,0.02059847,118370.0,118360.0,1.13152964]
[1753590835211,0.00519847,118370.0,118360.0,1.13152964]
[1753590835839,0.00200847,118370.0,118360.0,1.13152964]
[1753590839880,0.00200847,118370.0,118360.0,1.13164964]
[1753590840653,4.847e-05,118370.0,118360.0,1.13164964]
[1753590854830,4.847e-05,118370.0,118360.0,0.81540106]
[1753590855051,4.847e-05,118370.0,118360.0,1.13164964]
[1753590857450,4.847e-05,118370.0,118360.0,1.10637408]
[1753590859284,4.847e-05,118370.0,118360.0,0.7901255]
[1753590859474,4.847e-05,118370.0,118360.0,1.10637408]
[1753590860593,4.847e-05,118370.0,118360.0,1.1318098]
[1753590863813,4.847e-05,118370.0,118360.0,1.1347498]
[1753590865636,4.847e-05,118370.0,118360.0,1.1318098]
[1753590869841,0.00533847,118370.0,118360.0,0.81556122]
[1753590870017,0.04389847,118370.0,118360.0,1.1318098]
[1753590870665,0.04389847,118370.0,118360.0,0.81556122]
[1753590870870,0.04389847,118370.0,118360.0,1.1318098]
[1753590871690,0.06774591,118370.0,118360.0,0.78893122]
[1753590871860,0.07619349,118370.0,118360.0,0.77203441]
[1753590872063,0.09308901,118370.0,118360.0,0.77203441]
[1753590872360,0.09308901,118370.0,118360.0,1.08828299]
[1753590872547,0.08464114,118370.0,118360.0,1.08836299]
[1753590872746,0.08464114,118370.0,118360.0,0.77211441]
[1753590872950,0.08464114,118370.0,118360.0,1.08836299]
[1753590873361,0.09308886,118370.0,118360.0,1.08836299]
[1753590874381,0.07619349,118370.0,118360.0,1.08836299]
[1753590874600,0.06774591,118370.0,118360.0,1.08836299]
[1753590875257,0.05929847,118370.0,118360.0,1.08836299]
[1753590875459,0.05929847,118370.0,118360.0,1.11283299]
[1753590876475,0.03673847,118370.0,118360.0,1.11283299]
[1753590879457,0.03673847,118370.0,118360.0,1.11484299]
[1753590879643,0.04518591,118370.0,118360.0,1.11484299]
[1753590879853,0.06774591,118370.0,118360.0,1.11484299]
[1753590880073,0.03673847,118370.0,118360.0,0.79859441]
[1753590880275,0.03673847,118370.0,118360.0,1.11484299]
[1753590882240,0.04518591,118370.0,118360.0,1.11484299]
[1753590882838,0.03673847,118370.0,118360.0,1.12391478]
[1753590883054,0.03673847,118370.0,118360.0,1.11484299]
[1753590884969,0.02133847,118370.0,118360.0,1.11484299]
[1753590887276,0.02133847,118370.0,118360.0,0.79859441]
[1753590887501,0.02133847,118370.0,118360.0,1.11484299]
[1753590887705,0.02978591,118370.0,118360.0,1.11484299]
[1753590888350,0.02978591,118370.0,118360.0,0.79859441]
[1753590888720,0.02133847,118370.0,118360.0,1.11484299]
[1753590889336,0.02133847,118370.0,118360.0,0.79859441]
[1753590889495,0.02978591,118370.0,118360.0,1.11484299]
[1753590890231,0.02978591,118370.0,118360.0,0.79859441]
[1753590890438,0.03823342,118370.0,118360.0,1.11484299]
[1753590891062,0.02978591,118370.0,118360.0,1.11484299]
[1753590893310,0.02978591,118370.0,118360.0,1.11488299]
[1753590896539,0.02653591,118370.0,118360.0,1.11488299]
[1753590897521,0.02653591,118370.0,118360.0,0.79863441]
[1753590897752,0.02653591,118370.0,118360.0,1.11488299]
[1753590899199,0.03498349,118370.0,118360.0,1.11488299]
[1753590899600,0.02653591,118370.0,118360.0,1.11488299]
[1753590900379,0.03498356,118370.0,118360.0,1.11488299]
[1753590901006,0.03498349,118370.0,118360.0,1.11488299]
[1753590902057,0.04343121,118370.0,118360.0,1.11488299]
[1753590902291,0.03806349,118370.0,118360.0,1.11488299]
[1753590903169,0.04651114,118370.0,118360.0,0.79863441]
[1753590903370,0.04651114,118370.0,118360.0,1.11488299]
[1753590904433,0.03806349,118370.0,118360.0,1.11488299]
[1753590905131,0.03806342,118370.0,118360.0,1.11488299]
[1753590905793,0.046511,118370.0,118360.0,1.11488299]
[1753590906462,0.02653591,118370.0,118360.0,1.11488299]
[1753590907327,0.03498342,118370.0,118360.0,1.11488299]
[1753590909665,0.05187872,118370.0,118360.0,1.11488299]
[1753590909883,0.043431,118370.0,118360.0,1.11488299]
[1753590910119,0.05187865,118370.0,118360.0,1.11488299]
[1753590911133,0.043431,118370.0,118360.0,1.12395478]
[1753590911463,0.043431,118370.0,118360.0,1.11488299]
[1753590913304,0.03498342,118370.0,118360.0,1.11488299]
[1753590915018,0.04343107,118370.0,118360.0,1.11488299]
[1753590915223,0.05187887,118370.0,118360.0,0.79863441]
[1753590915466,0.04343107,118370.0,118360.0,1.11488299]
[1753590917654,0.043431,118370.0,118360.0,1.11488299]
[1753590918705,0.05187872,118370.0,118360.0,1.11488299]